bitfinex/quotes_ETHUSD_20250411
["timestamp","ask_amount","ask_price","bid_price","bid_amount"]
[1744383278225,4.28588401,1555.2,1555.0,6.43078]
[1744383278388,6.43058,1555.1,1554.8,3.7529]
[1744383278586,6.43088,1555.0,1554.7,6.43195]
[1744383279015,12.8621,1555.0,1554.7,6.43195]
[1744383279319,6.43133,1554.9,1554.6,7.21537]
[1744383279521,12.86207,1555.0,1554.7,6.43192]
[1744383279747,6.43102,1555.0,1554.7,12.86388]
[1744383280118,6.43102,1555.0,1554.6,6.43228]
[1744383280119,14.25544764,1555.0,1554.6,6.43228]
[1744383280317,6.43131,1554.9,1554.6,6.43228]
[1744383280640,7.82423764,1555.0,1554.6,6.43228]
[1744383280841,1.39331764,1555.0,1554.5,3.0]
[1744383281037,18.95056,1555.2,1554.8,12.86288]
[1744383281540,18.95058,1555.2,1554.8,6.43141]
[1744383281724,12.52014,1555.2,1554.9,6.43123]
[1744383282040,6.09,1555.2,1554.9,6.43116]
[1744383282239,13.12913,1555.2,1554.8,6.4315]
[1744383282399,12.86123,1555.1,1554.8,6.4315]
[1744383282600,6.43059,1555.1,1554.8,6.4315]
[1744383283223,12.86126,1555.1,1554.8,6.4315]
[1744383283414,6.43059,1555.1,1554.8,6.4315]
[1744383283622,12.86123,1555.1,1554.8,6.4315]
[1744383283841,8.386613,1555.1,1554.8,6.4315]
[1744383284039,8.386613,1555.1,1554.8,12.86307]
[1744383284224,6.43101,1555.0,1554.7,7.71037073]
[1744383284401,6.43051,1555.1,1554.7,7.71037073]
[1744383284605,6.43099,1555.0,1554.7,7.71037073]
[1744383284802,6.43055,1555.1,1554.7,7.71037073]
[1744383285024,0.703955,1555.1,1554.7,7.71037073]
[1744383285343,6.43152,1554.9,1554.7,0.7983]
[1744383285545,6.43131,1554.9,1554.7,0.7983]
[1744383285916,6.43093,1555.0,1554.7,7.23027]
[1744383286250,12.86198,1555.0,1554.7,7.23027]
[1744383286639,6.43128,1554.9,1554.7,0.7983]
[1744383286946,6.43093,1555.0,1554.7,0.7983]
[1744383287151,6.43131,1554.9,1554.7,0.7983]
[1744383287452,6.43131,1554.9,1554.6,12.86486]
[1744383287662,7.074023,1555.0,1554.6,12.86486]
[1744383287663,0.643093,1555.0,1554.6,6.43243]
[1744383287837,12.862,1555.0,1554.7,6.43207]
[1744383288040,6.43045,1555.1,1554.5,7.21222]
[1744383288253,6.43194,1554.8,1554.5,7.21222]
[1744383288455,6.43137,1554.9,1554.5,7.21221]
[1744383288758,6.4317,1554.8,1554.5,7.2122]
[1744383289056,6.4317,1554.8,1554.5,13.64501]
[1744383289260,6.4317,1554.8,1554.5,7.2122]
[1744383289956,6.43057,1555.1,1554.8,6.43169]
[1744383290127,6.43057,1555.1,1554.8,6.43157]
[1744383290548,12.86119,1555.1,1554.8,6.43157]
[1744383290748,12.86115,1555.1,1554.8,7.22507]
[1744383290954,6.43057,1555.1,1554.8,7.22507]
[1744383291124,6.43057,1555.1,1554.8,13.65664]
[1744383291327,6.43058,1555.1,1554.8,7.22507]
[1744383291573,6.42978,1555.3,1555.0,6.43068]
[1744383291736,6.42978,1555.3,1554.9,12.86235]
[1744383292437,6.42978,1555.3,1555.0,6.43075]
[1744383292759,6.43128,1554.9,1554.6,7.24638]
[1744383292958,6.43101,1555.0,1554.7,6.93306359]
[1744383293139,6.43101,1555.0,1554.7,13.36506359]
[1744383293346,6.43101,1555.0,1554.7,6.93316359]
[1744383293539,12.86024,1555.2,1554.8,6.43145]
[1744383293853,6.43089,1555.0,1554.7,6.93310359]
[1744383294046,6.43069,1555.1,1554.8,6.43165]
[1744383294229,6.43045,1555.1,1554.8,6.43158]
[1744383294756,12.51974,1555.3,1555.0,6.43062]
[1744383294922,6.43004,1555.2,1554.9,12.86244]
[1744383295357,21.067044,1555.3,1554.9,12.86244]
[1744383295660,6.43005,1555.2,1554.9,12.86239]
[1744383296262,12.86038,1555.2,1554.9,6.43117]
[1744383296558,6.43005,1555.2,1554.9,6.43117]
[1744383296727,6.43046,1555.1,1554.8,13.68226]
[1744383296930,6.43005,1555.2,1554.8,13.68226]
[1744383296931,6.43005,1555.2,1554.9,6.4312]
[1744383297356,18.9496,1555.3,1554.9,6.43114]
[1744383297567,12.86025,1555.2,1554.9,6.43114]
[1744383297863,12.86025,1555.2,1555.0,0.50184996]
[1744383298371,6.43004,1555.2,1555.0,0.50184996]
[1744383298767,12.51973,1555.3,1555.0,6.93254996]
[1744383299060,12.85961,1555.3,1555.1,0.50184996]
[1744383299262,6.42973,1555.3,1555.1,0.50184996]
[1744383299557,15.08233,1555.4,1555.1,6.93224996]
[1744383299782,15.08233,1555.4,1555.2,0.50184996]
[1744383299986,6.42962,1555.3,1555.2,0.50184996]
[1744383300351,15.08233,1555.4,1555.2,0.50184996]
[1744383300582,8.653,1555.4,1555.2,6.93180996]
[1744383300881,21.51171,1555.4,1555.3,0.50184996]
[1744383302185,6.43085,1555.1,1554.8,12.86323]
[1744383302494,18.94875,1555.4,1555.0,7.23689]
[1744383302654,6.42987,1555.3,1555.0,13.66762]
[1744383302850,6.42987,1555.3,1555.0,7.23701]
[1744383303090,6.42987,1555.3,1555.1,0.50378715]
[1744383303251,12.51933,1555.4,1555.1,0.50378715]
[1744383303450,6.09,1555.4,1555.2,6.43003]
[1744383303654,6.42954,1555.4,1555.1,6.93405715]
[1744383303887,6.42954,1555.4,1555.2,0.50378715]
[1744383304087,12.85896,1555.4,1555.2,0.50378715]
[1744383304590,12.85896,1555.4,1555.3,0.50378715]
[1744383305282,6.42942,1555.4,1555.3,0.50378715]
[1744383308292,8.358164,1555.4,1555.3,0.40458715]
[1744383310401,6.42942,1555.4,1555.3,0.40458715]
[1744383311672,9.42942,1555.4,1555.3,0.40458715]
[1744383312611,6.42942,1555.4,1555.3,0.40458715]
[1744383313913,12.8605,1555.2,1554.9,7.26191]
[1744383314500,12.2125,1555.2,1554.9,7.26191]
[1744383314930,6.43086,1555.0,1554.9,0.8309]
[1744383315318,6.43086,1555.0,1554.7,16.33743877]
[1744383315319,12.86205,1555.0,1554.7,9.90543877]
[1744383315646,12.86299,1554.9,1554.7,0.7803]
[1744383315846,6.431,1555.0,1554.7,7.21224]
[1744383316029,6.43116,1555.0,1554.7,0.7803]
[1744383316240,6.43049,1555.1,1554.5,1.364543]
[1744383316418,6.43311,1554.5,1554.2,7.26016]
[1744383316606,6.43225,1554.7,1554.3,3.66754044]
[1744383316802,6.43174,1554.8,1554.5,0.8228]
[1744383317001,6.43243,1554.7,1554.5,0.8228]
[1744383317450,6.43223,1554.7,1554.5,0.8228]
[1744383318347,6.43252,1554.6,1554.5,0.8228]
[1744383318508,6.43252,1554.6,1554.3,0.7694]
[1744383318702,6.43304,1554.5,1554.3,0.7694]
[1744383319047,6.43252,1554.6,1554.3,7.20303]
[1744383319249,6.43335,1554.4,1554.1,7.69523138]
[1744383319455,6.43335,1554.4,1554.1,7.21443]
[1744383319608,6.43335,1554.4,1554.1,0.78]
[1744383319810,6.43335,1554.4,1554.1,7.6989486]
[1744383320040,12.8661,1554.5,1554.2,6.43414]
[1744383320639,6.43339,1554.4,1554.1,7.6988586]
[1744383320819,12.86707,1554.4,1554.1,9.84579785]
[1744383321130,6.43295,1554.5,1554.2,6.93598139]
[1744383321304,6.43295,1554.5,1554.2,7.00031813]
[1744383321706,12.86604,1554.5,1554.2,7.00031813]
[1744383322013,6.43295,1554.5,1554.2,13.43435813]
[1744383322213,12.8661,1554.5,1554.3,0.50192139]
[1744383323248,12.8661,1554.5,1554.2,8.18294556]
[1744383323719,14.715,1554.7,1554.1,2.92693925]
[1744383323909,6.43405,1554.3,1554.1,0.78]
[1744383324733,6.43393,1554.3,1554.2,0.50120249]
[1744383325342,6.43302,1554.5,1554.2,6.93526249]
[1744383325621,6.43354,1554.4,1554.2,0.50120249]
[1744383325817,6.43354,1554.4,1554.3,0.50120249]
[1744383326023,13.510594,1554.4,1554.3,0.50120249]
[1744383326624,12.86622,1554.5,1554.3,1.32680249]
[1744383326929,12.86618,1554.5,1554.3,0.8256]
[1744383327128,6.43335,1554.4,1554.3,0.8256]
[1744383327328,12.86615,1554.5,1554.3,0.8256]
[1744383327531,14.152905,1554.5,1554.3,0.8256]
[1744383327948,7.719665,1554.5,1554.3,0.8256]
[1744383328144,12.86624,1554.5,1554.3,0.8256]
[1744383328354,6.43305,1554.5,1554.3,0.8256]
[1744383328523,12.86615,1554.5,1554.3,0.8256]
[1744383329061,6.43305,1554.5,1554.3,0.8256]
[1744383329224,6.09,1554.7,1554.4,6.4331]
[1744383329429,12.52211,1554.7,1554.4,6.4331]
[1744383329629,6.43306,1554.5,1554.3,0.8256]
[1744383329934,6.43417,1554.2,1553.9,6.91947685]
[1744383330139,6.43417,1554.2,1553.9,0.7787]
[1744383330344,6.43417,1554.2,1553.9,7.214]
[1744383330552,6.43386,1554.3,1554.0,6.43478]
[1744383330863,12.86628,1554.5,1554.2,7.20223]
[1744383331064,6.43305,1554.5,1554.2,7.20213]
[1744383331631,6.43305,1554.5,1554.2,13.63619]
[1744383331930,12.86616,1554.5,1554.2,7.20213]
[1744383332167,6.43305,1554.5,1554.2,13.63618]
[1744383332323,6.43337,1554.4,1554.2,0.7681]
[1744383332667,6.43376,1554.3,1554.2,0.7681]
[1744383332869,12.86642,1554.5,1554.2,0.7681]
[1744383333081,6.43335,1554.4,1554.2,0.7681]
[1744383333242,6.43308,1554.5,1554.2,7.20225]
[1744383333444,12.86618,1554.5,1554.2,7.20225]
[1744383333646,2.755618,1554.5,1554.2,0.7681]
[1744383333865,9.188748,1554.5,1554.2,0.7681]
[1744383334044,4.895408,1554.7,1554.4,6.43308]
[1744383334254,12.52174,1554.8,1554.5,0.8267]
[1744383334570,6.43174,1554.8,1554.5,7.25942]
[1744383335165,12.86362,1554.8,1554.5,7.25942]
[1744383335362,6.43174,1554.8,1554.5,13.69223]
[1744383335667,6.43234,1554.7,1554.3,6.4336]
[1744383335876,6.43282,1554.6,1554.3,13.68604]
[1744383336291,6.43282,1554.6,1554.3,7.25242]
[1744383336589,6.43261,1554.6,1554.3,7.25242]
[1744383336756,6.43171,1554.8,1554.3,0.8188]
[1744383336951,6.43305,1554.5,1554.3,0.8188]
[1744383337181,12.86547,1554.6,1554.3,0.8188]
[1744383337380,6.43301,1554.5,1554.3,0.8188]
[1744383337691,12.86615,1554.5,1554.3,0.8188]
[1744383337849,6.43262,1554.6,1554.3,7.25248]
[1744383338045,7.075401,1554.7,1554.4,6.43323]
[1744383338249,6.4326,1554.6,1554.3,13.68608]
[1744383338450,12.86531,1554.6,1554.3,7.25244]
[1744383338692,12.86529,1554.6,1554.3,7.25244]
[1744383338903,12.86529,1554.6,1554.4,0.50098961]
[1744383339378,12.86529,1554.6,1554.3,7.25244]
[1744383339555,12.86527,1554.6,1554.3,7.25244]
[1744383339755,6.4326,1554.6,1554.3,13.68608]
[1744383340078,6.4326,1554.6,1554.3,7.25244]
[1744383340455,6.4326,1554.6,1554.3,13.68609]
[1744383340679,13.507681,1554.7,1554.4,6.93474343]
[1744383340849,6.43221,1554.7,1554.4,13.36803343]
[1744383341250,6.43221,1554.7,1554.4,6.93474343]
[1744383341503,12.5218,1554.8,1554.5,6.93435343]
[1744383341870,18.95374,1554.8,1554.5,6.93435343]
[1744383342189,6.4321,1554.7,1554.6,0.50145343]
[1744383342350,18.9538,1554.8,1554.6,0.50145343]
[1744383342546,12.5218,1554.8,1554.6,0.50145343]
[1744383342815,6.09,1554.8,1554.6,1.29635343]
[1744383342967,12.5217,1554.8,1554.6,0.7949]
[1744383343281,6.09,1554.8,1554.6,7.22723]
[1744383343894,6.09,1554.8,1554.7,0.5020821]
[1744383344297,15.674009,1555.0,1554.7,7.70682331]
[1744383344298,8.6,1555.0,1554.7,7.70682331]
[1744383344493,8.6,1555.0,1554.7,7.70700331]
[1744383344695,8.6,1555.0,1554.8,13.3653021]
[1744383344895,6.09,1555.2,1555.0,6.43074]
[1744383345108,6.42966,1555.3,1555.0,6.43074]
[1744383345272,9.184559,1555.3,1554.9,7.20988]
[1744383345611,9.184559,1555.3,1555.0,6.9329221]
[1744383345775,6.43008,1555.2,1555.0,0.5020821]
[1744383345975,12.86052,1555.2,1555.0,0.5020821]
[1744383346430,12.86052,1555.2,1554.9,0.7788]
[1744383346708,14.4220619,1555.2,1554.9,0.7788]
[1744383347004,9.184629,1555.3,1555.0,6.4308]
[1744383347405,15.614429,1555.3,1555.1,0.50191794]
[1744383347913,15.614469,1555.3,1555.1,0.50191794]
[1744383348276,12.8604,1555.2,1554.9,7.20999]
[1744383348508,6.431,1555.0,1554.8,0.8206]
[1744383348876,12.86202,1555.0,1554.7,6.43196]
[1744383349080,12.86202,1555.0,1554.6,7.25298]
[1744383349279,6.43065,1555.1,1554.7,6.93355109]
[1744383349472,7.6515299,1555.2,1554.7,6.93355109]
[1744383349669,6.43113,1555.0,1554.7,6.93355109]
[1744383349871,12.86226,1555.0,1554.7,6.93355109]
[1744383350071,6.43128,1554.9,1554.7,0.50158109]
[1744383350285,12.86269,1554.9,1554.7,0.50158109]
[1744383350607,6.43128,1554.9,1554.8,0.50158109]
[1744383351384,8.360611,1554.9,1554.8,0.50158109]
[1744383351583,6.43293,1554.5,1554.2,7.24236]
[1744383352293,12.86606,1554.5,1554.2,7.30668371]
[1744383352487,12.86606,1554.5,1554.3,0.50144459]
[1744383352687,12.86529,1554.6,1554.3,0.50144459]
[1744383352987,6.43313,1554.5,1554.3,0.50144459]
[1744383353190,6.43335,1554.4,1554.3,0.50144459]
[1744383354852,13.809109,1554.6,1554.3,1.29984459]
[1744383355136,6.43313,1554.5,1554.3,1.29984459]
[1744383355425,6.43313,1554.5,1554.4,0.50144459]
[1744383356522,18.95557,1554.6,1554.4,0.50144459]
[1744383356831,12.52271,1554.6,1554.4,0.50144459]
[1744383357033,12.52271,1554.6,1554.5,0.50144459]
[1744383358795,6.43325,1554.5,1554.3,0.7984]
[1744383359233,12.8665,1554.5,1554.3,0.7984]
[1744383359439,6.43325,1554.5,1554.4,0.50157851]
[1744383359600,12.52265,1554.6,1554.4,0.50157851]
[1744383359800,12.52265,1554.6,1554.4,1.27493836]
[1744383360538,6.43265,1554.6,1554.5,0.50157851]
[1744383361434,6.43219,1554.7,1554.5,0.50157851]
[1744383361818,12.8646,1554.7,1554.5,0.50157851]
[1744383362000,12.8646,1554.7,1554.6,0.50157851]
[1744383362533,15.02954,1554.9,1554.7,0.7644]
[1744383362735,8.598,1554.9,1554.7,7.1964]
[1744383363038,15.0293,1554.9,1554.8,1.22121851]
[1744383363210,15.0293,1554.9,1554.8,0.50157851]
[1744383365137,6.4313,1554.9,1554.8,0.50157851]
[1744383365321,6.4305,1555.1,1554.8,1.29817851]
[1744383365530,6.43128,1554.9,1554.8,1.29817851]
[1744383365730,12.86211,1555.0,1554.8,1.29817851]
[1744383366040,6.43128,1554.9,1554.8,0.50157851]
[1744383367531,6.43184,1554.8,1554.6,0.7966]
[1744383367931,6.43277,1554.6,1554.4,0.7774]
[1744383368115,6.43293,1554.5,1554.2,7.21145]
[1744383368439,6.43262,1554.6,1554.3,6.43369]
[1744383368650,6.43296,1554.5,1554.4,0.5018545]
[1744383369220,8.362791,1554.5,1554.4,0.5018545]
[1744383369741,6.43296,1554.5,1554.4,0.5018545]
[1744383370754,12.52296,1554.5,1554.4,0.5018545]
[1744383371050,6.43417,1554.2,1554.1,0.5018545]
[1744383372256,6.43492,1554.1,1553.8,7.20936]
[1744383372557,6.43501,1554.0,1553.8,0.7737]
[1744383372933,6.43492,1554.1,1553.8,7.20945]
[1744383373129,6.43421,1554.2,1553.8,9.00543281]
[1744383373335,6.43459,1554.1,1553.9,0.50131988]
[1744383373835,6.43421,1554.2,1553.9,0.50131988]
[1744383374162,6.43459,1554.1,1553.9,0.50131988]
[1744383374453,6.435,1554.0,1553.9,0.50131988]
[1744383374663,8.365438,1554.0,1553.9,0.50131988]
[1744383375463,6.435,1554.0,1553.8,0.7937]
[1744383376367,12.8702,1554.0,1553.8,0.7937]
[1744383376571,6.43542,1553.9,1553.8,0.7937]
[1744383376862,6.435,1554.0,1553.8,0.7937]
[1744383377162,12.8702,1554.0,1553.8,0.7937]
[1744383377462,12.87022,1554.0,1553.8,0.7937]
[1744383377861,6.43542,1553.9,1553.8,0.7937]
[1744383378342,6.43492,1554.1,1553.8,0.7937]
[1744383378736,6.43512,1554.0,1553.8,0.7937]
[1744383379458,6.43469,1554.1,1553.8,0.7937]
[1744383379765,6.43469,1554.1,1553.8,7.952268]
[1744383379968,6.43469,1554.1,1553.9,0.50095713]
[1744383380533,12.86947,1554.1,1553.9,0.50095713]
[1744383380873,6.43469,1554.1,1553.9,0.50095713]
[1744383381183,6.43469,1554.1,1553.8,13.66495]
[1744383381385,6.43469,1554.1,1553.8,7.22929]
[1744383381780,6.43469,1554.1,1553.8,13.66499]
[1744383381982,6.43425,1554.2,1553.9,6.43537]
[1744383382182,1.252425,1554.2,1553.8,7.22929]
[1744383382483,6.09,1554.3,1553.8,7.22929]
[1744383382690,12.86879,1554.2,1553.8,7.22929]
[1744383383187,12.86879,1554.2,1553.8,13.66496]
[1744383383566,12.86879,1554.2,1553.9,0.50103163]
[1744383383765,6.43421,1554.2,1553.9,6.93637163]
[1744383384293,12.52346,1554.4,1554.1,6.43452]
[1744383384592,6.09,1554.4,1554.1,7.24015]
[1744383385090,12.5235,1554.4,1554.1,7.24015]
[1744383385396,12.5235,1554.4,1553.9,7.241]
[1744383385397,6.43431,1554.2,1553.9,7.241]
[1744383385561,12.52351,1554.4,1554.0,6.43484]
[1744383385761,1.252351,1554.3,1554.0,6.43484]
[1744383386080,14.120081,1554.3,1553.9,13.67634]
[1744383386281,6.09,1554.4,1554.1,6.43451]
[1744383386282,12.52343,1554.4,1554.1,6.43451]
[1744383386479,12.52343,1554.4,1554.1,12.86892]
[1744383386652,12.52343,1554.4,1554.1,6.43445]
[1744383386987,6.43399,1554.3,1554.0,6.43488]
[1744383387167,14.120449,1554.3,1554.0,6.43488]
[1744383387558,6.43423,1554.2,1553.9,7.24093]
[1744383387957,7.686289,1554.3,1554.0,6.43497]
[1744383388266,14.120219,1554.3,1554.0,6.43497]
[1744383388465,12.52344,1554.4,1554.1,0.501053]
[1744383388692,12.86545,1554.6,1554.3,6.43358]
[1744383388894,12.86533,1554.6,1554.3,6.43358]
[1744383389081,12.52217,1554.7,1554.4,6.43322]
[1744383389393,6.43218,1554.7,1554.4,12.86618]
[1744383389616,6.43218,1554.7,1554.4,6.43295]
[1744383389948,6.43218,1554.7,1554.3,12.8673]
[1744383390075,6.09,1554.8,1554.5,6.43292]
[1744383390264,6.43176,1554.8,1554.5,13.64332]
[1744383390464,6.43176,1554.8,1554.5,7.2104]
[1744383390691,12.86359,1554.8,1554.5,0.7776]
[1744383390896,6.43176,1554.8,1554.5,0.7776]
[1744383391100,12.86386,1554.8,1554.5,0.7776]
[1744383391468,6.43217,1554.7,1554.5,0.7776]
[1744383391911,12.86445,1554.7,1554.5,0.7776]
[1744383392201,6.43257,1554.6,1554.3,15.03784]
[1744383392404,12.86441,1554.7,1554.4,6.4333]
[1744383392764,12.86441,1554.7,1554.3,8.6042]
[1744383392765,6.43258,1554.6,1554.3,8.6042]
[1744383392959,6.43258,1554.6,1554.3,15.03784]
[1744383393201,12.86464,1554.7,1554.4,6.43333]
[1744383393706,12.86439,1554.7,1554.5,0.50116551]
[1744383394391,12.86442,1554.7,1554.5,0.50116551]
[1744383394587,6.43252,1554.6,1554.5,0.50116551]
[1744383394894,12.86537,1554.6,1554.3,8.6042]
[1744383395274,6.43252,1554.6,1554.3,2.17056]
[1744383395491,6.43252,1554.6,1554.3,15.03802]
[1744383395702,6.43252,1554.6,1554.3,2.17056]
[1744383395870,6.43296,1554.5,1554.3,0.8022]
[1744383396067,6.43296,1554.5,1554.1,6.43447]
[1744383396402,6.43348,1554.4,1554.1,7.26657]
[1744383396590,6.43348,1554.4,1554.1,13.70104]
[1744383396988,6.43307,1554.5,1554.2,12.8683]
[1744383397194,6.09,1554.6,1554.4,0.7526]
[1744383397513,6.09,1554.6,1554.4,7.18591]
[1744383397678,6.09,1554.6,1554.4,13.61915]
[1744383398008,6.43183,1554.8,1554.4,0.7526]
[1744383398009,6.43174,1554.8,1554.4,0.7526]
[1744383398216,12.8638,1554.8,1554.4,13.61904]
[1744383398604,6.43174,1554.8,1554.5,6.93439048]
[1744383398781,12.86364,1554.8,1554.5,6.93439048]
[1744383399318,6.43174,1554.8,1554.5,6.93439048]
[1744383399615,6.43113,1555.0,1554.7,13.65242]
[1744383399781,6.4305,1555.1,1554.8,6.43156]
[1744383400003,6.4305,1555.1,1554.8,12.86314]
[1744383400323,27.49046,1555.2,1554.8,6.43169]
[1744383400518,27.49046,1555.2,1554.7,0.7884]
[1744383400519,18.1477744,1555.2,1554.9,6.43117]
[1744383400698,24.5779744,1555.2,1554.9,6.43117]
[1744383400900,16.80556401,1555.3,1555.0,6.43048]
[1744383401230,10.37588401,1555.3,1555.1,6.43033]
[1744383401431,4.28588401,1555.3,1555.1,12.86067]
[1744383401606,4.28588401,1555.3,1555.2,6.43004]
[1744383402340,4.28588401,1555.3,1555.2,6.93062508]
[1744383402654,4.28588401,1555.3,1555.2,9.05142059]
[1744383403809,4.28588401,1555.3,1555.2,2.62138059]
[1744383404007,4.28588401,1555.3,1555.2,0.50058508]
[1744383404319,6.42926,1555.4,1555.2,0.50058508]
[1744383404525,12.85888,1555.4,1555.2,0.50058508]
[1744383404832,6.42926,1555.4,1555.2,0.50058508]
[1744383406151,12.85787,1555.5,1555.2,6.93054508]
[1744383406361,21.0585,1555.6,1555.3,6.42949]
[1744383406847,27.48706,1555.6,1555.3,6.42949]
[1744383407343,6.43,1555.3,1555.1,0.8035]
[1744383407517,6.43,1555.3,1555.0,6.43084]
[1744383407848,6.43018,1555.2,1554.9,0.7521]
[1744383408015,6.43061,1555.1,1554.9,0.7521]
[1744383408215,12.8614,1555.1,1554.9,0.7521]
[1744383408844,6.43061,1555.1,1554.9,0.7521]
[1744383409644,12.86128,1555.1,1554.9,0.7521]
[1744383409866,24.05863,1555.6,1555.0,6.43084]
[1744383410161,24.05863,1555.6,1555.0,6.43074]
[1744383410162,6.42964,1555.3,1555.0,6.43074]
[1744383410452,6.42964,1555.3,1555.1,0.49947866]
[1744383410607,12.85786,1555.5,1555.2,0.7892]
[1744383410812,6.42884,1555.5,1555.2,7.21916]
[1744383411041,6.42934,1555.4,1555.2,2.20410787]
[1744383411255,6.42891,1555.5,1555.2,8.63400787]
[1744383411443,21.0584,1555.6,1555.3,6.42957]
[1744383411648,27.48704,1555.6,1555.3,6.92904866]
[1744383412142,21.0584,1555.6,1555.3,6.92904866]
[1744383412457,21.0584,1555.6,1555.3,8.48528631]
[1744383412685,6.09,1556.0,1555.3,5.72610261]
[1744383412847,8.537,1556.1,1555.5,10.0990463]
[1744383413051,6.42773,1555.8,1555.4,14.11965866]
[1744383413268,6.42773,1555.8,1555.5,6.42864]
[1744383413933,12.85461,1555.9,1555.5,12.85731]
[1744383414159,6.42723,1555.9,1555.5,12.85731]
[1744383414365,6.42723,1555.9,1555.6,7.714111]
[1744383414589,6.4268,1556.0,1555.7,7.18737]
[1744383414750,12.85372,1556.0,1555.7,0.7594]
[1744383415076,12.85312,1556.1,1555.7,13.61511]
[1744383415678,12.82188401,1556.2,1555.8,7.17793]
[1744383415679,4.28588401,1556.2,1555.8,7.17793]
[1744383415983,17.13792401,1556.2,1555.8,14.96592]
[1744383416198,10.71183401,1556.2,1555.9,6.42712]
[1744383416372,4.28588401,1556.2,1555.9,0.56330865]
[1744383416543,8.586,1556.4,1556.0,0.8024]
[1744383416741,15.01122,1556.4,1556.1,6.42596]
[1744383416993,6.42551,1556.3,1556.0,7.22906]
[1744383417277,15.01122,1556.4,1556.1,7.149096]
[1744383417579,15.01122,1556.4,1556.2,0.49904232]
[1744383417781,21.43649,1556.4,1556.2,0.49904232]
[1744383417938,21.43648,1556.4,1556.2,0.49904232]
[1744383418280,15.01122,1556.4,1556.2,0.49904232]
[1744383418668,8.586,1556.4,1556.3,0.7877]
[1744383418869,15.01108,1556.4,1556.3,1.28674232]
[1744383419839,15.01108,1556.4,1556.3,0.49904232]
[1744383420267,0.05,1556.4,1556.3,0.49904232]
[1744383420789,0.05,1556.4,1556.3,7.68083232]
[1744383420937,0.05,1556.4,1556.3,9.09146955]
[1744383422071,0.05,1556.4,1556.3,2.66597955]
[1744383422584,0.05,1556.4,1556.3,9.09146955]
[1744383423644,0.05,1556.4,1556.3,9.1557158]
[1744383423982,0.05,1556.4,1556.3,9.09146955]
[1744383424558,0.05,1556.4,1556.3,12.09146955]
[1744383425379,0.05,1556.4,1556.3,12.70571094]
[1744383426258,0.05,1556.4,1556.3,12.64146955]
[1744383426456,12.84556,1557.0,1556.6,6.42417]
[1744383426660,12.84556,1557.0,1556.7,0.642417]
[1744383426906,6.42271,1557.0,1556.7,0.642417]
[1744383427057,6.47096,1557.4,1557.0,6.42233]
[1744383427256,0.05,1557.4,1557.3,4.4955163]
[1744383427495,0.05,1557.4,1557.3,4.55972555]
[1744383427696,0.05,1557.4,1557.3,7.74561232]
[1744383427995,0.05,1557.4,1557.3,2.74096255]
[1744383428495,0.05,1557.4,1557.3,9.16233255]
[1744383428665,0.05,1557.4,1557.3,2.74096255]
[1744383428860,0.05,1557.4,1557.3,0.49904232]
[1744383429287,6.47095,1557.4,1557.3,0.49904232]
[1744383429809,0.05,1557.4,1557.3,6.92041232]
[1744383429993,0.05,1557.4,1557.3,10.59072862]
[1744383430375,0.05,1557.4,1557.3,11.47503155]
[1744383430571,0.05,1557.4,1557.3,13.2646937]
[1744383430781,0.05,1557.4,1557.3,16.20049077]
[1744383431604,0.05,1557.4,1557.3,16.75049077]
[1744383435908,0.05,1557.4,1557.3,13.20049077]
[1744383436126,0.05,1557.4,1557.3,11.41082862]
[1744383436790,0.05,1557.4,1557.3,11.96082862]
[1744383436995,0.05,1557.4,1557.3,15.02502312]
[1744383437240,0.05,1557.4,1557.3,14.96082862]
[1744383438520,0.05,1557.4,1557.3,7.74051232]
[1744383438836,0.05,1557.4,1557.3,0.49904232]
[1744383441542,6.47095,1557.4,1557.3,0.49904232]
[1744383441848,7.760111,1557.4,1557.3,0.49904232]
[1744383442339,6.47095,1557.4,1557.3,0.49904232]
[1744383444637,0.05,1557.4,1557.3,0.49904232]
[1744383444838,6.47095,1557.4,1557.3,0.49904232]
[1744383450630,0.05,1557.4,1557.3,1.26444232]
[1744383450829,0.05,1557.4,1557.3,2.40006918]
[1744383451240,0.05,1557.4,1557.3,9.29534331]
[1744383452060,0.05,1557.4,1557.3,9.35954647]
[1744383452240,0.05,1557.4,1557.3,9.29534331]
[1744383452566,0.05,1557.4,1557.3,12.84534331]
[1744383452951,1e-05,1557.4,1557.3,13.26801479]
[1744383453248,0.394617,1558.1,1557.8,0.7951]
[1744383453249,13.231057,1558.1,1557.8,0.7951]
[1744383453453,6.812837,1558.1,1557.8,7.935865]
[1744383453653,13.231087,1558.1,1557.8,7.935865]
[1744383453854,13.231087,1558.1,1557.9,0.49904232]
[1744383454532,6.41848,1558.0,1557.9,0.49904232]
[1744383455731,13.231317,1558.1,1557.9,0.49904232]
[1744383456377,6.41848,1558.0,1557.9,0.49904232]
[1744383457171,7.7416117,1558.0,1557.9,0.49904232]
[1744383457861,10.7416117,1558.0,1557.9,0.49904232]
[1744383458968,6.42009,1557.7,1557.5,0.47976085]
[1744383459269,6.41891,1557.9,1557.2,4.4628163]
[1744383459270,6.42054,1557.5,1557.2,4.4628163]
[1744383459484,6.42137,1557.3,1557.2,0.7925]
[1744383459781,12.84294,1557.3,1557.0,10.9108263]
[1744383459985,12.84294,1557.3,1557.1,0.35931435]
[1744383460203,6.42178,1557.2,1557.1,0.35931435]
[1744383460777,6.42259,1557.1,1556.8,0.8181]
[1744383460959,6.42271,1557.0,1556.8,1.90931463]
[1744383461159,6.42271,1557.0,1556.9,0.50020107]
[1744383461847,6.42189,1557.2,1556.9,0.50020107]
[1744383462047,6.42189,1557.2,1557.0,0.50020107]